FIN.Transaction Date,MCH.Merchant Name,FIN.Accounting Code 01 Value,FIN.Accounting Code 01 Description,FIN.Accounting Code 03 Description,FIN.Net Transaction Amount,FIN.Transaction Amount,FIN.TAX.Net Amount,FIN.Tax Amount,FIN.TAX.Tax Rate,FIN.Tax Rate(%)
01/07/2020,E.ON ENERGY SOLUTIONS,A10213,Housing Options,Hostel Management,13.19,13.19,.00,.00,.00,.00
01/07/2020,MAILCHIMP    MONTHLY,A10109,Heritage Culture and Visitors,Advertising,188.26,188.26,.00,.00,.09,.00
01/07/2020,Twitter Online Ads,A11573,Promotion Of Tourism,Advertising,35.06,35.06,.00,.00,.00,.00
01/07/2020,BUNZL CLEANING SUPPLIE,B20023,HRA - Gladstone House,Cleaning Materials,144.99,173.99,.00,29.00,.00,.00
01/07/2020,XLN TELECOM LTD,N10101,Southwell Tr admin & ops,Telephones,68.94,82.73,.00,13.79,.00,20.00
01/08/2020,MAILCHIMP    MONTHLY,A10109,Heritage Culture and Visitors,Advertising,176.56,176.56,.00,.00,.09,.00
01/08/2020,CO OP FOOD,N10101,Southwell Tr admin & ops,Vending Machine Provisions,4.40,4.40,.00,.00,.00,.00
01/09/2020,ROYAL MAIL CHARGES,A10833,Central Postages,Postages,1.50,1.50,.00,.00,.00,.00
01/09/2020,MAILCHIMP    MONTHLY,A10109,Heritage Culture and Visitors,Advertising,173.48,173.48,.00,.00,.09,.00
01/09/2020,COMPLETE CARE SHOP,B20021,HRA - Responsive Repairs,Materials,51.01,51.01,.00,.00,.00,.00
01/09/2020,NEWARK & SHERWOOD LOCK,A11810,Newark Business Innovation Cen,Premises Security,9.17,11.00,.00,1.83,.00,20.00
01/09/2020,WWW.CASTORSONLINE.CO.U,A26901,Vehicle Pool Workshop,Other Equipment And Tools,39.47,47.36,.00,7.89,.00,20.00
01/09/2020,ASDA GROCERIES ONLINE,A11831,Castle House,Catering,46.98,46.98,.00,.00,.00,.00
02/07/2020,milk&more,B20021,HRA - Responsive Repairs,Office Equipment Purchase,24.75,24.75,.00,.00,.00,.00
02/07/2020,AMZNMktplace,B20021,HRA - Responsive Repairs,Materials,8.32,9.99,.00,1.67,.00,.00
02/07/2020,COOLBLADES,B20023,HRA - Gladstone House,Photographic Work,40.05,48.06,.00,8.01,.00,20.00
02/09/2020,SCREWFIX DIRECT,A11810,Newark Business Innovation Cen,Repairs And Maintenance,9.22,11.07,.00,1.85,.00,20.00
02/09/2020,SCREWFIX DIRECT,A11810,Newark Business Innovation Cen,Repairs And Maintenance,12.14,14.57,.00,2.43,.00,20.00
02/09/2020,VIKING UK,A26901,Vehicle Pool Workshop,Office Equipment Purchase,44.90,53.88,44.90,8.98,.00,.00
02/09/2020,ALLIANCE DISPOSABLES,B20015,HRA - Vale View,Cleaning Materials,36.92,44.31,.00,7.39,.00,.00
02/09/2020,ALLIANCE DISPOSABLES,B20023,HRA - Gladstone House,Cleaning Materials,36.93,44.31,.00,7.38,.00,.00
02/09/2020,AOS ONLINE,B20015,HRA - Vale View,Cleaning Materials,46.12,46.12,.00,.00,.00,.00
02/09/2020,DF Sales Ltd,B20015,HRA - Vale View,Cleaning Materials,22.96,22.96,.00,.00,.00,.00
02/09/2020,WWW.NISBETS.COM,B20015,HRA - Vale View,Catering,39.92,47.90,.00,7.98,.00,20.00
02/09/2020,CO OP FOOD,N10101,Southwell Tr admin & ops,Vending Machine Provisions,4.40,4.40,.00,.00,.00,.00
02/09/2020,XLN TELECOM LTD,N10101,Southwell Tr admin & ops,Telephones,82.73,82.73,.00,.00,.00,.00
03/07/2020,WWW.RIBABOOKSHOPS.COM,TF3228,Homeless Hostel,Dummy when Alphanumeric is being used,156.00,156.00,.00,.00,.00,.00
03/07/2020,HCI SUPPLIES LLP,B20021,HRA - Responsive Repairs,Materials,497.10,596.52,.00,99.42,.00,20.00
03/07/2020,HCI SUPPLIES LLP,B20021,HRA - Responsive Repairs,Materials,497.10,596.52,.00,99.42,.00,20.00
03/07/2020,"LYNDA.COM, INC.",A10802,Ict,Departmental Hardware,297.85,297.85,.00,.00,.00,.00
03/07/2020,SETON,B20019,HRA - Planned Maintenance,Materials,27.13,32.55,.00,5.42,.00,20.00
03/07/2020,SETON,B20019,HRA - Planned Maintenance,Materials,14.57,17.48,.00,2.91,.00,20.00
03/07/2020,ROYAL MAIL CHARGES,A10833,Central Postages,Postages,1.50,1.50,.00,.00,.00,.00
03/07/2020,ROYAL MAIL CHARGES,A10833,Central Postages,Postages,1.50,1.50,.00,.00,.00,.00
03/07/2020,SP   MUSEUM IN A BOX,A10109,Heritage Culture and Visitors,Education & Outreach,186.75,186.75,.00,.00,.00,.00
03/07/2020,WWWNEXTDAYCATERINGCOUK,B20015,HRA - Vale View,Catering Equipment,37.28,44.74,.00,7.46,.00,20.00
03/07/2020,ADEXA DIRECT,B20015,HRA - Vale View,Catering Equipment,478.80,478.80,.00,.00,.00,.00
03/07/2020,HOME BARGAINS NEWARK,A11930,Covid-19 Expenditure only,Miscellaneous Expenses,4.08,4.90,.00,.82,.00,20.00
03/07/2020,PAYPAL  FFT,C54495,Food Environment Grant,Contractual Services,19.50,19.50,.00,.00,.00,.00
03/08/2020,WWW.INSTANTPRINT.C,B20021,HRA - Responsive Repairs,Materials,23.16,27.79,.00,4.63,.00,20.00
03/08/2020,ASDA GROCERIES ONLINE,A11831,Castle House,Catering,50.05,50.05,.00,.00,.00,.00
03/08/2020,CARTRIDGESHOP.CO.UK,N10101,Southwell Tr admin & ops,Printing,66.58,79.90,.00,13.32,.00,20.00
03/09/2020,W BOYES & CO LTD NEWAR,A10109,Heritage Culture and Visitors,Repairs And Maintenance,2.04,2.45,.00,.41,.00,20.00
03/09/2020,milk&more,B20021,HRA - Responsive Repairs,Materials,24.75,24.75,.00,.00,.00,.00
03/09/2020,SCREWFIX DIRECT,B20019,HRA - Planned Maintenance,Clothing And Uniforms,29.99,29.99,.00,.00,.00,.00
04/07/2020,HOME BARGAINS (RETFORD,A11931,HART - Community Response Items,Miscellaneous Expenses,17.33,20.80,.00,3.47,.00,20.00
04/08/2020,ROYAL MAIL CHARGES,A10833,Central Postages,Postages,2.00,2.00,.00,.00,.00,.00
04/08/2020,AMZNMktplace,A10109,Heritage Culture and Visitors,Repairs And Maintenance,44.98,53.97,.00,8.99,.00,20.00
04/08/2020,EB  ONLINE TRAINING MA,A10841,Central Personnel Expenses,Internal Training,95.00,114.00,.00,19.00,.00,20.00
04/08/2020,NEWARK & SHERWOOD LOCK,A11810,Newark Business Innovation Cen,Premises Security,9.17,11.00,.00,1.83,.00,20.00
04/08/2020,POST OFFICE COUNTER,N10101,Southwell Tr admin & ops,Postages,12.97,12.97,.00,.00,.00,.00
04/09/2020,IZ  Gannets Cafe Ltd,A10864,Corporate Management Team,Travel And Subsistence,27.65,27.65,.00,.00,.00,.00
04/09/2020,IDHDIRECT.CO.UK,A10802,Ict,Professional Services,600.00,720.00,.00,120.00,.00,20.00
04/09/2020,IDHDIRECT.CO.UK,A11002,Refuse Collection,Other Equipment And Tools,125.57,150.68,.00,25.11,.00,20.00
04/09/2020,IDHDIRECT.CO.UK,A15023,Grounds Maintenance,Materials,600.00,720.00,.00,120.00,.00,20.00
04/09/2020,IDHDIRECT.CO.UK,A11002,Refuse Collection,Other Equipment And Tools,367.43,440.92,.00,73.49,.00,20.00
04/09/2020,CABCARD SERVICES U,B20022,HRA -  Tenancy & Estates,Travel And Subsistence,33.60,33.60,.00,.00,.00,.00
05/08/2020,BRITISH RED CROSS,A10841,Central Personnel Expenses,Internal Training,199.00,238.80,.00,39.80,.00,20.00
05/08/2020,Allpay  NOTTINGHAM COM,A10213,Housing Options,Prevention Fund,349.32,349.32,.00,.00,.00,.00
05/08/2020,SCREWFIX NEWARK,A15023,Grounds Maintenance,Clothing And Uniforms,29.99,29.99,.00,.00,.00,.00
05/08/2020,PAYPAL  AIMSSALESLT EB,B20023,HRA - Gladstone House,Cleaning Materials,18.80,18.80,.00,.00,.00,.00
06/07/2020,ROYAL MAIL CHARGES,A10833,Central Postages,Postages,1.50,1.50,.00,.00,.00,.00
06/07/2020,ROYAL MAIL CHARGES,A10833,Central Postages,Postages,1.50,1.50,.00,.00,.00,.00
06/07/2020,ROYAL MAIL CHARGES,A10833,Central Postages,Postages,1.50,1.50,.00,.00,.00,.00
06/07/2020,CO OP GROUP FOOD,A11810,Newark Business Innovation Cen,Catering,.90,.90,.00,.00,.00,.00
06/07/2020,ASDA GROCERIES ONLINE,A11831,Castle House,Catering,54.43,54.43,.00,.00,.00,.00
06/08/2020,CULTURE LEARNING,A10841,Central Personnel Expenses,Internal Training,30.00,30.00,.00,.00,.00,.00
06/08/2020,123 REG LTD,A11851,Economic Development Unit,Inward investment,23.98,28.78,.00,4.80,.00,20.00
06/08/2020,BUNZL CLEANING SUPPLIE,A11930,Covid-19 Expenditure only,Contractual Services,121.08,145.30,.00,24.22,.00,.00
06/08/2020,milk&more,B20021,HRA - Responsive Repairs,Office Equipment Purchase,24.75,24.75,.00,.00,.00,.00
06/08/2020,ST JOHN AMBULANCE,B20023,HRA - Gladstone House,Miscellaneous Expenses,41.00,49.20,.00,8.20,.00,20.00
06/08/2020,ARDEN WINCH,B20015,HRA - Vale View,Clothing And Uniforms,107.75,129.30,.00,21.55,.00,20.00
07/07/2020,THERMOSENSE LTD,A11002,Refuse Collection,Materials,110.00,132.00,.00,22.00,.00,20.00
07/07/2020,DVLA VEHICLE TAX,A26901,Vehicle Pool Workshop,Licences & M.O.T.'S,617.50,617.50,.00,.00,.00,.00
07/07/2020,DVLA VEHICLE TAX,A26901,Vehicle Pool Workshop,Licences & M.O.T.'S,233.50,233.50,.00,.00,.00,.00
07/07/2020,DVLA VEHICLE TAX,A26901,Vehicle Pool Workshop,Licences & M.O.T.'S,267.50,267.50,.00,.00,.00,.00
07/07/2020,DVLA VEHICLE TAX,A26901,Vehicle Pool Workshop,Licences & M.O.T.'S,267.50,267.50,.00,.00,.00,.00
07/07/2020,DVLA VEHICLE TAX,A26901,Vehicle Pool Workshop,Licences & M.O.T.'S,617.50,617.50,.00,.00,.00,.00
07/07/2020,DVLA VEHICLE TAX,A26901,Vehicle Pool Workshop,Licences & M.O.T.'S,233.50,233.50,.00,.00,.00,.00
07/07/2020,DVLA VEHICLE TAX,A26901,Vehicle Pool Workshop,Licences & M.O.T.'S,617.50,617.50,.00,.00,.00,.00
07/07/2020,DVLA VEHICLE TAX,A26901,Vehicle Pool Workshop,Licences & M.O.T.'S,267.50,267.50,.00,.00,.00,.00
07/07/2020,DVLA VEHICLE TAX,A26901,Vehicle Pool Workshop,Licences & M.O.T.'S,617.50,617.50,.00,.00,.00,.00
07/07/2020,DVLA VEHICLE TAX,A26901,Vehicle Pool Workshop,Licences & M.O.T.'S,617.50,617.50,.00,.00,.00,.00
07/07/2020,GROUP FOR ED IN MUSEUM,A10109,Heritage Culture and Visitors,Education & Outreach,118.00,118.00,.00,.00,.00,.00
07/07/2020,WWW.DEFIBSHOP.CO.UK,N10101,Southwell Tr admin & ops,Other Equipment And Tools,183.00,219.60,.00,36.60,.00,20.00
07/08/2020,DVLA VEHICLE TAX,A26901,Vehicle Pool Workshop,Licences & M.O.T.'S,302.50,302.50,.00,.00,.00,.00
07/08/2020,DVLA VEHICLE TAX,A26901,Vehicle Pool Workshop,Licences & M.O.T.'S,302.50,302.50,.00,.00,.00,.00
07/08/2020,DVLA VEHICLE TAX,A26901,Vehicle Pool Workshop,Licences & M.O.T.'S,302.50,302.50,.00,.00,.00,.00
07/08/2020,ROYAL MAIL CHARGES,A10833,Central Postages,Postages,1.50,1.50,.00,.00,.00,.00
07/08/2020,AMZNMKTPLACE AMAZON.CO,A11831,Castle House,Health And Safety,9.17,11.00,.00,1.83,.00,20.00
07/09/2020,NEWARK & SHERWOOD LOCK,A11002,Refuse Collection,Materials,50.00,60.00,.00,10.00,.00,20.00
07/09/2020,CAPITA GAS,B20021,HRA - Responsive Repairs,Materials,31.18,31.18,.00,.00,.00,.00
07/09/2020,CO OP GROUP FOOD,A11810,Newark Business Innovation Cen,Catering,1.50,1.50,.00,.00,.00,.00
07/09/2020,Primeprint Newark Ltd,A10109,Heritage Culture and Visitors,Advertising,36.25,43.50,.00,7.25,.00,20.00
07/09/2020,CO OP FOOD,N10101,Southwell Tr admin & ops,Vending Machine Provisions,6.60,6.60,.00,.00,.00,.00
08/07/2020,WWW.ARCO.CO.UK,A12011,Surface Car Parks Newark,Clothing And Uniforms,63.24,75.89,63.24,12.65,.20,.00
08/07/2020,capitalhairandbeauty.c,A11930,Covid-19 Expenditure only,Contractual Services,42.18,43.17,.00,.99,.00,.00
08/07/2020,STEVENAGE PACKAGING,A11930,Covid-19 Expenditure only,Contractual Services,64.95,64.95,.00,.00,.00,.00
08/07/2020,Primeprint Newark Ltd,A10109,Heritage Culture and Visitors,Advertising,5.00,6.00,.00,1.00,.00,20.00
08/07/2020,TAMBO LOUNGE,A10864,Corporate Management Team,Travel And Subsistence,12.45,12.45,.00,.00,.00,.00
08/07/2020,POUNDLAND LTD,A11931,HART - Community Response Items,Miscellaneous Expenses,13.33,16.00,.00,2.67,.00,20.00
08/08/2020,123 REG LTD,A11851,Economic Development Unit,Inward investment,47.96,57.55,.00,9.59,.00,20.00
08/09/2020,HOMEBASE,B20021,HRA - Responsive Repairs,Materials,47.95,47.95,.00,.00,.00,.00
08/09/2020,VIKING UK,B20023,HRA - Gladstone House,Catering,44.97,53.96,44.97,8.99,.00,.00
08/09/2020,WWW.ONLINEKITCHENWARE.,B20023,HRA - Gladstone House,Catering Equipment,25.15,25.15,.00,.00,.00,.00
09/07/2020,milk&more,B20021,HRA - Responsive Repairs,Furniture And Fittings,24.75,24.75,.00,.00,.00,.00
09/07/2020,Allpay  NOTTINGHAM COM,A10213,Housing Options,Prevention Fund,415.20,415.20,.00,.00,.00,.00
09/07/2020,AMZNMktplace,A11831,Castle House,Premises Repairs & Renewals,74.36,74.36,.00,.00,.00,.00
09/08/2020,AMZNMktplace,C54014,Community Safety Fund,Contractual Services,44.91,53.89,.00,8.98,.00,20.00
09/09/2020,SCREWFIX DIRECT,A11336,Vicar Water Park,Materials,16.98,20.38,.00,3.40,.00,20.00
09/09/2020,WWW.ECATERINGONLINE.CO,B20023,HRA - Gladstone House,Miscellaneous Expenses,208.32,249.98,.00,41.66,.00,20.00
09/09/2020,SPAR NEWARK,A10109,Heritage Culture and Visitors,Catering,8.84,8.84,.00,.00,.00,.00
09/09/2020,WWW.EUROCELL.CO.UK,B20021,HRA - Responsive Repairs,Materials,5.02,5.02,.00,.00,.00,.00
09/09/2020,AMZNMKTPLACE AMAZON.CO,B20021,HRA - Responsive Repairs,Materials,10.87,13.04,.00,2.17,.00,20.00
10/07/2020,capitalhairandbeauty.c,A11930,Covid-19 Expenditure only,Contractual Services,28.92,29.91,.00,.99,.00,.00
10/07/2020,Primeprint Newark Ltd,A10109,Heritage Culture and Visitors,Advertising,5.00,6.00,.00,1.00,.00,20.00
10/07/2020,AMZNMktplace,A11831,Castle House,Premises Repairs & Renewals,93.07,111.68,.00,18.61,.00,20.00
10/07/2020,DVLA VEHICLE TAX,A26901,Vehicle Pool Workshop,Licences & M.O.T.'S,267.50,267.50,.00,.00,.00,.00
10/07/2020,S ALLWOOD & SON LTD,A10102,Millgate Museum,Promotion Of Events,50.00,50.00,.00,.00,.00,.00
10/07/2020,WWW.DAVIDSSALES.CO.UK,A11931,HART - Community Response Items,Miscellaneous Expenses,123.66,123.66,.00,.00,.00,.00
10/07/2020,AMZNMktplace,N10101,Southwell Tr admin & ops,Other Equipment And Tools,45.32,54.38,.00,9.06,.00,20.00
10/08/2020,SCREWFIX NEWARK,A15023,Grounds Maintenance,Materials,30.00,36.00,.00,6.00,.00,20.00
10/08/2020,DNH GODADDY.COM EUROPE,A11573,Promotion Of Tourism,Professional Services,28.78,28.78,.00,.00,.00,.00
10/08/2020,COMPLETE CARE SHOP,B20021,HRA - Responsive Repairs,Materials,132.18,132.18,.00,.00,.00,.00
10/09/2020,E.ON ENERGY SOLUTIONS,A11931,HART - Community Response Items,Miscellaneous Expenses,17.67,17.67,.00,.00,.00,.00
10/09/2020,THE BRIDGE GROCERY,A10213,Housing Options,Hostel Management,5.00,5.00,.00,.00,.00,.00
10/09/2020,milk&more,B20021,HRA - Responsive Repairs,Office Equipment Purchase,24.75,24.75,.00,.00,.00,.00
10/09/2020,AMZNMKTPLACE AMAZON.CO,A10109,Heritage Culture and Visitors,Repairs And Maintenance,83.94,83.94,.00,.00,.00,.00
10/09/2020,SumUp   king phones,A10217,Syrian resettlement scheme,Recharge Third Party,60.00,60.00,.00,.00,.00,.00
10/09/2020,WWW.FLOORMART.CO.UK,B20021,HRA - Responsive Repairs,Materials,107.56,129.07,.00,21.51,.00,20.00
10/09/2020,CO OP GROUP FOOD,A11810,Newark Business Innovation Cen,Catering,4.00,4.00,.00,.00,.00,.00
10/09/2020,NEWARK & SHERWOOD LOCK,A11810,Newark Business Innovation Cen,Premises Security,16.67,20.00,.00,3.33,.00,20.00
11/08/2020,COMPANIES HOUSE,A10841,Central Personnel Expenses,Internal Training,8.00,8.00,.00,.00,.00,.00
11/08/2020,AMZNMktplace,B20021,HRA - Responsive Repairs,Materials,11.24,13.49,.00,2.25,20.00,20.00
11/08/2020,SCREWFIX DIRECT,B20021,HRA - Responsive Repairs,Materials,141.65,169.98,.00,28.33,.00,20.00
11/08/2020,DISCLOSURE & BARRING,A10103,Museums Management,Professional Services,13.00,13.00,.00,.00,.00,.00
11/08/2020,AMZNMktplace,B20019,HRA - Planned Maintenance,Materials,20.40,24.48,.00,4.08,.00,20.00
11/08/2020,WWW.FIXTHEBOG.UK,B20021,HRA - Responsive Repairs,Materials,27.49,32.99,.00,5.50,.00,20.00
11/08/2020,E.ON ENERGY SOLUTIONS,A10213,Housing Options,Hostel Management,62.42,62.42,.00,.00,.00,.00
11/08/2020,E.ON ENERGY SOLUTIONS,A10213,Housing Options,Hostel Management,.43,.43,.00,.00,.00,.00
11/08/2020,E.ON ENERGY SOLUTIONS,A10213,Housing Options,Hostel Management,16.31,16.31,.00,.00,.00,.00
11/08/2020,capitalhairandbeauty.c,B20023,HRA - Gladstone House,Photographic Work,57.75,69.30,.00,11.55,.00,20.00
11/09/2020,HOME BARGAINS NEWARK,A10213,Housing Options,Hostel Management,1.66,1.99,.00,.33,.00,20.00
11/09/2020,ASDA GROCERIES ONLINE,A11831,Castle House,Catering,36.26,36.26,.00,.00,.00,.00
12/07/2020,FACEBK  XYVEEUNLU2,A11573,Promotion Of Tourism,Advertising,428.19,428.19,.00,.00,.00,.00
12/07/2020,AMZNMKTPLACE AMAZON.CO,A10814,Licensing Admin,Stationery,15.07,18.08,.00,3.01,.00,20.00
12/08/2020,CO OP GROUP FOOD,A11810,Newark Business Innovation Cen,Office Equipment Purchase,3.30,3.30,.00,.00,.00,.00
12/08/2020,1STLOCATE T/A LCS,A10213,Housing Options,Hostel Management,34.43,34.43,.00,.00,.00,.00
12/08/2020,FACEBK  S9GQ7VNLU2,A11573,Promotion Of Tourism,Advertising,367.01,367.01,.00,.00,.00,.00
12/09/2020,FACEBK  2NHVQVWLU2,A11573,Promotion Of Tourism,Advertising,170.57,170.57,.00,.00,.00,.00
13/07/2020,ADOBE CREATIVE CLOUD,A10109,Heritage Culture and Visitors,Advertising,59.00,70.80,.00,11.80,.00,20.00
13/07/2020,CO OP GROUP FOOD,A11810,Newark Business Innovation Cen,Catering,.90,.90,.00,.00,.00,.00
13/07/2020,CURRYS,A10109,Heritage Culture and Visitors,Education & Outreach,7.99,7.99,.00,.00,.00,.00
13/07/2020,WWW.NISBETS.COM,B20015,HRA - Vale View,Cleaning Materials,18.72,18.72,.00,.00,.00,.00
13/07/2020,ASDA GROCERIES ONLINE,A11831,Castle House,Catering,50.93,50.93,.00,.00,.00,.00
13/07/2020,WWW.ARCO.CO.UK,A11930,Covid-19 Expenditure only,Contractual Services,185.62,222.74,185.62,37.12,.20,.00
13/08/2020,CCS Yellow Cabs,A11931,HART - Community Response Items,Miscellaneous Expenses,102.00,102.00,.00,.00,.00,.00
13/08/2020,ADOBE CREATIVE CLOUD,A10109,Heritage Culture and Visitors,Advertising,59.00,70.80,.00,11.80,.00,20.00
13/08/2020,SCREWFIX NEWARK,A11336,Vicar Water Park,Materials,16.98,20.38,.00,3.40,.00,20.00
13/08/2020,milk&more,B20021,HRA - Responsive Repairs,Office Equipment Purchase,24.75,24.75,.00,.00,.00,.00
13/08/2020,SHOWERDOC,B20021,HRA - Responsive Repairs,Materials,38.92,46.71,.00,7.79,.00,20.00
13/08/2020,SALLY SALON SERVIC,B20023,HRA - Gladstone House,Photographic Work,73.00,87.60,.00,14.60,.00,20.00
13/08/2020,ASDA GROCERIES ONLINE,A11831,Castle House,Catering,44.94,44.94,.00,.00,.00,.00
13/09/2020,ADOBE CREATIVE CLOUD,A10109,Heritage Culture and Visitors,Advertising,59.00,70.80,.00,11.80,.00,20.00
13/09/2020,AMZNMktplace,A11831,Castle House,Cleaning Materials,24.50,24.50,.00,.00,.00,.00
14/07/2020,GODADDY COM EUROPE,A10802,Ict,Hardware Maintenance,28.78,28.78,.00,.00,.00,.00
14/07/2020,WWW.NEWARK-SHERWOODDC.,A11931,HART - Community Response Items,Miscellaneous Expenses,14.07,14.07,.00,.00,.00,.00
14/07/2020,WWW.NEWARK-SHERWOODDC.,A11931,HART - Community Response Items,Miscellaneous Expenses,137.65,137.65,.00,.00,.00,.00
14/07/2020,Primeprint Newark Ltd,A10109,Heritage Culture and Visitors,Advertising,5.00,6.00,.00,1.00,.00,20.00
14/07/2020,Amazon.co.uk 4E3PC6RP5,B20001,HRA - Stores,Furniture And Fittings,130.97,130.97,.00,.00,.00,.00
14/07/2020,KNOWLEDGE EXCHANGE GRO,A10841,Central Personnel Expenses,Internal Training,250.00,300.00,.00,50.00,.00,20.00
14/08/2020,THE RANGE-NEWARK,A15003,Brunel Drive Depot,Materials,16.66,19.99,.00,3.33,.00,20.00
14/08/2020,AMZNMKTPLACE AMAZON.CO,B20016,HRA - Street Wardens,Materials,6.66,7.99,.00,1.33,.00,20.00
14/08/2020,AMZNMktplace,B20021,HRA - Responsive Repairs,Materials,16.66,19.99,.00,3.33,.00,20.00
14/09/2020,LEISURE CONTROLS INTER,B20021,HRA - Responsive Repairs,Materials,268.80,268.80,.00,.00,.00,.00
14/09/2020,SCREWFIX NEWARK,A26901,Vehicle Pool Workshop,Clothing And Uniforms,22.49,26.99,.00,4.50,.00,20.00
14/09/2020,CO OP FOOD,N10101,Southwell Tr admin & ops,Vending Machine Provisions,6.60,6.60,.00,.00,.00,.00
15/07/2020,ROYAL MAIL CHARGES,A10833,Central Postages,Postages,2.00,2.00,.00,.00,.00,.00
15/07/2020,ROYAL MAIL CHARGES,A10833,Central Postages,Postages,1.50,1.50,.00,.00,.00,.00
15/07/2020,ROYAL MAIL CHARGES,A10833,Central Postages,Postages,1.50,1.50,.00,.00,.00,.00
15/07/2020,ROYAL MAIL CHARGES,A10833,Central Postages,Postages,1.50,1.50,.00,.00,.00,.00
15/07/2020,WWW.TOOLSTATION.COM,B20020,HRA - Voids Maintenance,Materials,69.15,82.98,.00,13.83,.00,20.00
15/07/2020,JANITORIALW,B20015,HRA - Vale View,Cleaning Materials,44.34,44.34,.00,.00,.00,.00
15/07/2020,WWW.NISBETS.COM,B20023,HRA - Gladstone House,Cleaning Materials,76.71,76.71,.00,.00,.00,.00
15/08/2020,MORPLAN.COM,N10101,Southwell Tr admin & ops,Other Equipment Maintenance,38.58,46.29,.00,7.71,.00,20.00
15/09/2020,ROYAL MAIL CHARGES,A10833,Central Postages,Postages,1.50,1.50,.00,.00,.00,.00
15/09/2020,ENDRICK TRADING LTD,B20023,HRA - Gladstone House,Miscellaneous Expenses,167.99,167.99,.00,.00,.00,.00
15/09/2020,WAITROSE 227,A10109,Heritage Culture and Visitors,Catering,15.00,15.00,.00,.00,.00,.00
15/09/2020,SGS ENGINEERING  UK  L,A15023,Grounds Maintenance,Materials,299.95,359.94,.00,59.99,.00,20.00
15/09/2020,SCREWFIX NEWARK,A26901,Vehicle Pool Workshop,Clothing And Uniforms,33.30,39.96,.00,6.66,.00,20.00
15/09/2020,AMZNMktplace,A10833,Central Postages,Materials,41.66,49.99,.00,8.33,.00,20.00
15/09/2020,BILTONS BLOOMS,B50000,HRA - Stategic Management,Disturbance Allowance,51.00,51.00,.00,.00,.00,.00
15/09/2020,WWW.MONEYCLAIM.GOV,B20004,HRA - Central Charges incl SLA's,Micellaneous Income,25.00,25.00,.00,.00,.00,.00
15/09/2020,WWW.MONEYCLAIM.GOV,B20004,HRA - Central Charges incl SLA's,Micellaneous Income,105.00,105.00,.00,.00,.00,.00
15/09/2020,WWW.MONEYCLAIM.GOV,B20004,HRA - Central Charges incl SLA's,Micellaneous Income,35.00,35.00,.00,.00,.00,.00
15/09/2020,WWW.MONEYCLAIM.GOV,B20004,HRA - Central Charges incl SLA's,Micellaneous Income,25.00,25.00,.00,.00,.00,.00
15/09/2020,AMZNMktplace,N10101,Southwell Tr admin & ops,Other Equipment And Tools,27.98,27.98,.00,.00,.00,.00
16/07/2020,AMZNMKTPLACE AMAZON.CO,A10109,Heritage Culture and Visitors,Repairs And Maintenance,24.98,29.98,.00,5.00,.00,20.00
16/07/2020,WWW.NEWARK-SHERWOODDC.,A11931,HART - Community Response Items,Miscellaneous Expenses,200.00,200.00,.00,.00,.00,.00
16/07/2020,WWW.NEWARK-SHERWOODDC.,A11931,HART - Community Response Items,Miscellaneous Expenses,200.00,200.00,.00,.00,.00,.00
16/07/2020,WWW.NEWARK-SHERWOODDC.,A11931,HART - Community Response Items,Miscellaneous Expenses,267.44,267.44,.00,.00,.00,.00
16/07/2020,FIELD STUDIES COUNCIL,A15023,Grounds Maintenance,Materials,41.00,41.00,.00,.00,.00,.00
16/07/2020,milk&more,B20021,HRA - Responsive Repairs,Office Equipment Purchase,24.75,24.75,.00,.00,.00,.00
16/08/2020,AMZNMktplace,A10109,Heritage Culture and Visitors,Other Equipment And Tools,19.00,22.80,.00,3.80,.00,20.00
16/09/2020,BOOKER LIMITED LINCOLN,A11810,Newark Business Innovation Cen,Catering,65.92,65.92,.00,.00,.00,.00
16/09/2020,BOOKER LIMITED LINCOLN,A11810,Newark Business Innovation Cen,Catering,422.22,422.22,.00,.00,.00,20.00
16/09/2020,BOOKER LIMITED LINCOLN,A11810,Newark Business Innovation Cen,Catering,64.90,64.90,.00,.00,.00,.00
16/09/2020,BOOKER LIMITED LINCOLN,A11810,Newark Business Innovation Cen,Catering,171.16,171.16,.00,.00,.00,20.00
16/09/2020,WWW.OFFICEFURNITUREONL,A11126,Cctv,Cctv Operation,316.00,379.20,.00,63.20,.00,20.00
16/09/2020,ZAVVI.COM,A10109,Heritage Culture and Visitors,Education & Outreach,28.98,28.98,.00,.00,.00,.00
16/09/2020,ASDA GROCERIES ONLINE,A11831,Castle House,Catering,60.51,60.51,.00,.00,.00,.00
17/07/2020,WWW.DAVIDSSALES.CO.UK,A11930,Covid-19 Expenditure only,Miscellaneous Expenses,33.00,33.00,.00,.00,.00,.00
17/07/2020,WWW.DAVIDSSALES.CO.UK,A11930,Covid-19 Expenditure only,Miscellaneous Expenses,4.16,4.99,.00,.83,.00,20.00
17/07/2020,TVLICENSING.CO.UK,A11831,Castle House,Contractual Services,157.50,157.50,.00,.00,.00,.00
17/08/2020,WWW.SOLACE.ORG.UK,A10864,Corporate Management Team,Subscriptions,350.00,350.00,.00,.00,.00,.00
17/08/2020,WWW.RHINOROOFRACKS.CO.,A26901,Vehicle Pool Workshop,Materials,169.23,203.08,.00,33.85,.00,20.00
17/08/2020,WWW.RHINOROOFRACKS.CO.,A26901,Vehicle Pool Workshop,Materials,118.94,142.73,.00,23.79,.00,20.00
17/09/2020,ALDI,A11810,Newark Business Innovation Cen,Catering,8.50,8.50,.00,.00,.00,.00
17/09/2020,NEWARK & SHERWOOD LOCK,A11810,Newark Business Innovation Cen,Premises Security,4.17,5.00,.00,.83,.00,20.00
17/09/2020,WWW.OFFICEFURNITUREONL,A11126,Cctv,Cctv Operation,316.00,379.20,.00,63.20,.00,20.00
17/09/2020,WM MORRISONS STORE,A10109,Heritage Culture and Visitors,Catering,3.27,3.27,.00,.00,.00,.00
17/09/2020,milk&more,B20021,HRA - Responsive Repairs,Office Equipment Purchase,24.75,24.75,.00,.00,.00,.00
17/09/2020,SCREWFIX NEWARK,A15023,Grounds Maintenance,Other Equipment And Tools,8.32,9.99,.00,1.67,.00,20.00
17/09/2020,DVSA,A26901,Vehicle Pool Workshop,Materials,410.00,410.00,.00,.00,.00,.00
17/09/2020,CULTURE LEARNING,A10109,Heritage Culture and Visitors,Education & Outreach,58.00,58.00,.00,.00,.00,.00
18/08/2020,THOMSON REUTERS UK LTD,A11604,Area Planning,Subscriptions,86.00,86.00,.00,.00,.00,.00
18/08/2020,WWW.NEWARK-SHERWOODDC.,A11931,HART - Community Response Items,Miscellaneous Expenses,12.87,12.87,.00,.00,.00,.00
18/08/2020,CO OP GROUP FOOD,A11810,Newark Business Innovation Cen,Catering,1.50,1.50,.00,.00,.00,.00
18/09/2020,ROYAL MAIL CHARGES,A10833,Central Postages,Postages,2.00,2.00,.00,.00,.00,.00
18/09/2020,Primeprint Newark Ltd,A10109,Heritage Culture and Visitors,Advertising,15.00,18.00,.00,3.00,.00,20.00
18/09/2020,WWW.WALLSANDFLOORS.CO.,B20021,HRA - Responsive Repairs,Materials,38.38,46.05,.00,7.67,.00,20.00
18/09/2020,ROYAL MAIL CHARGES,A10833,Central Postages,Postages,1.50,1.50,.00,.00,.00,.00
18/09/2020,ROYAL MAIL CHARGES,A10832,Central Telephones,Postages,1.50,1.50,.00,.00,.00,.00
19/07/2020,WWW.NEWARK-SHERWOODDC.,A11931,HART - Community Response Items,Miscellaneous Expenses,200.00,200.00,.00,.00,.00,.00
19/07/2020,WWW.NEWARK-SHERWOODDC.,A11931,HART - Community Response Items,Miscellaneous Expenses,200.00,200.00,.00,.00,.00,.00
19/07/2020,CARPHONE WAREHOUSE,N10101,Southwell Tr admin & ops,Other Equipment And Tools,83.33,99.99,.00,16.66,.00,20.00
19/08/2020,E.ON ENERGY SOLUTIONS,A11931,HART - Community Response Items,Miscellaneous Expenses,73.92,73.92,.00,.00,.00,.00
19/08/2020,E.ON ENERGY SOLUTIONS,A10213,Housing Options,Hostel Management,15.28,15.28,.00,.00,.00,.00
19/08/2020,W BOYES & CO LTD NEWAR,A10109,Heritage Culture and Visitors,Other Equipment And Tools,4.00,4.00,.00,.00,.00,.00
19/08/2020,Waterplus Select LTD,A10213,Housing Options,Hostel Management,545.00,545.00,.00,.00,.00,.00
19/09/2020,ASDA  STORES 4201,A11810,Newark Business Innovation Cen,Catering,4.70,4.70,.00,.00,.00,.00
19/09/2020,W BOYES & CO LTD NEWAR,A10109,Heritage Culture and Visitors,Repairs And Maintenance,6.50,7.80,.00,1.30,.00,20.00
20/07/2020,CO OP GROUP FOOD,A11810,Newark Business Innovation Cen,Catering,1.50,1.50,.00,.00,.00,.00
20/07/2020,ASDA GROCERIES ONLINE,A11831,Castle House,Catering,53.53,53.53,.00,.00,.00,.00
20/08/2020,ROYAL MAIL CHARGES,A10833,Central Postages,Postages,1.50,1.50,.00,.00,.00,.00
20/08/2020,ROYAL MAIL CHARGES,A10833,Central Postages,Postages,1.50,1.50,.00,.00,.00,.00
20/08/2020,ROYAL MAIL CHARGES,A10833,Central Postages,Postages,1.50,1.50,.00,.00,.00,.00
20/08/2020,ROYAL MAIL CHARGES,A10833,Central Postages,Postages,2.00,2.00,.00,.00,.00,.00
20/08/2020,milk&more,B20021,HRA - Responsive Repairs,Office Equipment Purchase,24.75,24.75,.00,.00,.00,.00
20/08/2020,CO OP FOOD,N10101,Southwell Tr admin & ops,Vending Machine Provisions,2.20,2.20,.00,.00,.00,.00
20/08/2020,HOMEBASE,B20020,HRA - Voids Maintenance,Materials,21.99,21.99,.00,.00,.00,.00
20/08/2020,CO OP GROUP FOOD,A11810,Newark Business Innovation Cen,Catering,1.50,1.50,.00,.00,.00,.00
20/08/2020,AMZNMKTPLACE AMAZON.CO,C54015,Vulnerable People,Other Equipment And Tools,656.80,656.80,.00,.00,.00,.00
20/09/2020,AMZNMktplace,A11126,Cctv,Cctv Operation,21.23,25.48,.00,4.25,.00,20.00
20/09/2020,AMZNMKTPLACE AMAZON.CO,A11126,Cctv,Cctv Operation,49.99,59.99,.00,10.00,.00,20.00
21/07/2020,BOOKER LIMITED LINCOLN,B20021,HRA - Responsive Repairs,Materials,41.40,41.40,.00,.00,.00,.00
21/07/2020,CURRYS ONLINE,B20018,HRA - Programmed Works,Community Centre White Goods,359.97,359.97,.00,.00,.00,.00
21/07/2020,WWW.CERTSURE.COM,B20021,HRA - Responsive Repairs,Materials,141.30,169.56,.00,28.26,.00,20.00
21/07/2020,BISHOPSPORT,A11930,Covid-19 Expenditure only,Miscellaneous Expenses,76.95,92.34,.00,15.39,.00,20.00
21/08/2020,TeamViewer GmbH,A10802,Ict,Hardware Maintenance,1438.80,1438.80,.00,.00,.00,.00
21/09/2020,EB  ONLINE TRAINING SO,A10841,Central Personnel Expenses,Internal Training,190.00,228.00,.00,38.00,.00,20.00
21/09/2020,STEVENAGE PACKAGING,A11930,Covid-19 Expenditure only,Contractual Services,51.85,51.85,.00,.00,.00,.00
21/09/2020,WWW.UKTILESALES.CO.UK,B20021,HRA - Responsive Repairs,Materials,28.42,34.10,.00,5.68,.00,20.00
21/09/2020,SCREWFIX DIRECT,B20021,HRA - Responsive Repairs,Materials,33.32,39.99,.00,6.67,.00,20.00
21/09/2020,AMZNMktplace,A11810,Newark Business Innovation Cen,Clothing And Uniforms,101.57,121.89,.00,20.32,20.00,20.00
21/09/2020,W BOYES & CO LTD NEWAR,A10109,Heritage Culture and Visitors,Education & Outreach,60.39,72.47,.00,12.08,.00,20.00
21/09/2020,ASDA GROCERIES ONLINE,A11831,Castle House,Catering,46.85,46.85,.00,.00,.00,.00
22/07/2020,ROYAL MAIL CHARGES,A10833,Central Postages,Postages,1.50,1.50,.00,.00,.00,.00
22/07/2020,ONE STOP 3018,A11931,HART - Community Response Items,Miscellaneous Expenses,40.00,40.00,.00,.00,.00,.00
22/07/2020,DVSA,A26901,Vehicle Pool Workshop,Materials,410.00,410.00,.00,.00,.00,.00
22/07/2020,CABCARD SERVICES U,B20022,HRA -  Tenancy & Estates,Travel And Subsistence,17.20,17.20,.00,.00,.00,.00
22/09/2020,WWW.MONEYCLAIM.GOV,B20004,HRA - Central Charges incl SLA's,Micellaneous Income,25.00,25.00,.00,.00,.00,.00
22/09/2020,WWW.MONEYCLAIM.GOV,B20004,HRA - Central Charges incl SLA's,Micellaneous Income,25.00,25.00,.00,.00,.00,.00
22/09/2020,WWW.MONEYCLAIM.GOV,B20004,HRA - Central Charges incl SLA's,Micellaneous Income,25.00,25.00,.00,.00,.00,.00
22/09/2020,W BOYES & CO LTD NEWAR,A10109,Heritage Culture and Visitors,Education & Outreach,24.71,29.65,.00,4.94,.00,20.00
22/09/2020,NEXON HYGIENE,B20015,HRA - Vale View,Cleaning Materials,49.28,49.28,.00,.00,.00,.00
22/09/2020,NEXON HYGIENE,B20023,HRA - Gladstone House,Cleaning Materials,49.28,49.28,.00,.00,.00,.00
22/09/2020,ALEXANDRA WEBSITE,B20015,HRA - Vale View,Clothing And Uniforms,28.76,28.76,.00,.00,.00,.00
23/07/2020,AMZNMktplace,A10109,Heritage Culture and Visitors,Repairs And Maintenance,6.66,7.99,.00,1.33,.00,20.00
23/07/2020,SCREWFIX DIRECT,B20021,HRA - Responsive Repairs,Materials,29.99,29.99,.00,.00,.00,.00
23/07/2020,DISCLOSURE & BARRING,A11702,Environmental Schemes,Professional Services,13.00,13.00,.00,.00,.00,.00
23/09/2020,WWW.ILESGROUP.CO.UK,A11930,Covid-19 Expenditure only,Contractual Services,-57.04,-68.45,.00,-11.41,.00,20.00
23/09/2020,WWW.ILESGROUP.CO.UK,A11930,Covid-19 Expenditure only,Contractual Services,68.45,68.45,.00,.00,.00,.00
23/09/2020,STEVENAGE PACKAGING,A11930,Covid-19 Expenditure only,Contractual Services,19.90,19.90,.00,.00,.00,.00
23/09/2020,Primeprint Newark Ltd,A10109,Heritage Culture and Visitors,Advertising,50.00,53.00,.00,3.00,.00,.00
23/09/2020,W BOYES & CO LTD NEWAR,A10109,Heritage Culture and Visitors,Repairs And Maintenance,10.00,10.00,.00,.00,.00,.00
23/09/2020,TIMPSON LTD,A10109,Heritage Culture and Visitors,Repairs And Maintenance,25.00,30.00,.00,5.00,.00,20.00
23/09/2020,WWW.MONEYCLAIM.GOV,B20004,HRA - Central Charges incl SLA's,Micellaneous Income,25.00,25.00,.00,.00,.00,.00
23/09/2020,GB DIY STORE LTD,B20021,HRA - Responsive Repairs,Materials,22.04,26.45,.00,4.41,.00,20.00
23/09/2020,ASDA GROCERIES ONLINE,A11831,Castle House,Catering,44.17,44.17,.00,.00,.00,.00
23/09/2020,ASDA GROCERIES ONLINE,A11831,Castle House,Catering,-2.00,-2.00,.00,.00,.00,.00
23/09/2020,ONE STOP 0817,N10101,Southwell Tr admin & ops,Vending Machine Provisions,2.30,2.30,.00,.00,.00,.00
24/07/2020,milk&more,B20021,HRA - Responsive Repairs,Office Equipment Purchase,24.75,24.75,.00,.00,.00,.00
24/07/2020,WWW.VKF-RENZEL.CO.,N10101,Southwell Tr admin & ops,Office Equipment Purchase,175.56,210.67,.00,35.11,.00,20.00
24/08/2020,WWW.SHAWS.CO.UK,A10819,Legal Section,Stationery,33.30,33.30,.00,.00,.00,.00
24/08/2020,CO OP FOOD,N10101,Southwell Tr admin & ops,Vending Machine Provisions,2.20,2.20,.00,.00,.00,.00
24/08/2020,CO OP GROUP FOOD,A11810,Newark Business Innovation Cen,Catering,1.50,1.50,.00,.00,.00,.00
24/08/2020,AMZNMktplace,A11810,Newark Business Innovation Cen,Office Equipment Purchase,10.79,12.95,.00,2.16,20.00,20.00
24/08/2020,WWW.RHINOROOFRACKS.COM,A26901,Vehicle Pool Workshop,Materials,384.00,460.80,.00,76.80,.00,20.00
24/08/2020,ASDA GROCERIES ONLINE,A11831,Castle House,Catering,45.44,45.44,.00,.00,.00,.00
24/09/2020,123 REG LTD,A10109,Heritage Culture and Visitors,Advertising,15.99,19.19,.00,3.20,.00,20.00
24/09/2020,ROYAL MAIL CHARGES,A10833,Central Postages,Postages,2.00,2.00,.00,.00,.00,.00
24/09/2020,WWW.ICO.ORG.UK,A10601,Electoral Registration,Subscriptions,40.00,40.00,.00,.00,.00,.00
24/09/2020,milk&more,B20021,HRA - Responsive Repairs,Office Equipment Purchase,24.75,24.75,.00,.00,.00,.00
24/09/2020,DISCLOSURE & BARRING,A10812,Personnel Section,Disclosure & barring service,13.00,13.00,.00,.00,.00,.00
24/09/2020,AMZNMKTPLACE AMAZON.CO,A10109,Heritage Culture and Visitors,Repairs And Maintenance,10.13,12.15,.00,2.02,.00,20.00
24/09/2020,Mollie  Thinking Mu...,A10109,Heritage Culture and Visitors,Education & Outreach,51.67,51.67,.00,.00,.00,.00
24/09/2020,Mollie  Thinking Mu...,A10109,Heritage Culture and Visitors,Education & Outreach,51.67,51.67,.00,.00,.00,.00
24/09/2020,capitalhairandbeauty.c,B20023,HRA - Gladstone House,Photographic Work,73.45,88.14,.00,14.69,.00,20.00
24/09/2020,AZZURRO ASSOCIATES LTD,A12401,Other Properties,Electricity,90.18,90.18,.00,.00,.00,.00
25/08/2020,ROYAL MAIL CHARGES,A10833,Central Postages,Postages,1.50,1.50,.00,.00,.00,.00
25/08/2020,capitalhairandbeauty.c,A11930,Covid-19 Expenditure only,Contractual Services,26.85,27.84,.00,.99,.00,.00
25/08/2020,AO RETAIL LIMITED,A15003,Brunel Drive Depot,Materials,90.83,109.00,.00,18.17,.00,20.00
25/08/2020,AMZNMKTPLACE AMAZON.CO,A10109,Heritage Culture and Visitors,Education & Outreach,101.83,122.20,.00,20.37,20.00,20.00
25/08/2020,JANITORIALW,B20023,HRA - Gladstone House,Cleaning Materials,83.65,100.38,.00,16.73,.00,20.00
25/09/2020,SCREWFIX DIRECT,A11810,Newark Business Innovation Cen,Repairs And Maintenance,4.99,5.99,.00,1.00,.00,20.00
25/09/2020,WWW.YMCAFIT.ORG.UK,N10101,Southwell Tr admin & ops,Training Expenses,132.60,132.60,.00,.00,.00,.00
25/09/2020,WWW.YMCAFIT.ORG.UK,N10101,Southwell Tr admin & ops,Training Expenses,1188.30,1188.30,.00,.00,.00,.00
25/09/2020,CO OP FOOD,N10101,Southwell Tr admin & ops,Vending Machine Provisions,8.80,8.80,.00,.00,.00,.00
25/09/2020,Mollie  Thinking Mu...,A10109,Heritage Culture and Visitors,Education & Outreach,51.46,51.46,.00,.00,.00,.00
25/09/2020,Mollie  Thinking Mu...,A10109,Heritage Culture and Visitors,Education & Outreach,51.46,51.46,.00,.00,.00,.00
25/09/2020,JANITORIALW,B20015,HRA - Vale View,Cleaning Materials,38.95,46.74,.00,7.79,.00,20.00
25/09/2020,WILKO.COM,B20015,HRA - Vale View,Cleaning Materials,19.17,23.00,.00,3.83,.00,20.00
26/06/2020,WWW.SOLOPRESS.COM,A11930,Covid-19 Expenditure only,Contractual Services,29.70,35.64,.00,5.94,.00,20.00
26/07/2020,FACEBK  UTV9GUWLU2,A11573,Promotion Of Tourism,Advertising,700.00,700.00,.00,.00,.00,.00
26/08/2020,ROYAL MAIL CHARGES,A10833,Central Postages,Postages,1.50,1.50,.00,.00,.00,.00
26/08/2020,ROYAL MAIL CHARGES,A10833,Central Postages,Postages,1.50,1.50,.00,.00,.00,.00
26/08/2020,THE PLASTIC PEOPLE,A11338,Sconce & Devon Park,Repairs And Maintenance,60.20,72.24,.00,12.04,.00,20.00
26/08/2020,DAVISON S BAKERY,A10864,Corporate Management Team,Catering,46.45,46.45,.00,.00,.00,.00
26/08/2020,CLOTC,A10109,Heritage Culture and Visitors,Education & Outreach,150.00,150.00,.00,.00,.00,.00
26/08/2020,eBay O 11-05629-90629,A10109,Heritage Culture and Visitors,Education & Outreach,10.13,10.13,.00,.00,.00,.00
26/08/2020,PAYPAL  DINGBAIYIKE EB,A10109,Heritage Culture and Visitors,Education & Outreach,42.66,42.66,.00,.00,.00,.00
26/08/2020,LOVE TIKI BARWARE PROD,B20023,HRA - Gladstone House,Catering,109.20,109.20,.00,.00,.00,.00
26/08/2020,AMZNMKTPLACE AMAZON.CO,B20023,HRA - Gladstone House,Cleaning Materials,38.00,38.00,.00,.00,.00,.00
27/06/2020,AMZNMktplace,A10109,Heritage Culture and Visitors,Repairs And Maintenance,10.95,10.95,.00,.00,.00,.00
27/06/2020,KING PHONES,A10217,Syrian resettlement scheme,Recharge Third Party,65.00,65.00,.00,.00,.00,.00
27/06/2020,AMZNMktplace,N10101,Southwell Tr admin & ops,Other Equipment And Tools,145.43,174.52,.00,29.09,.00,20.00
27/07/2020,Amazon.co.uk V53414P55,A10109,Heritage Culture and Visitors,Repairs And Maintenance,20.82,24.99,.00,4.17,.00,20.00
27/07/2020,HOMEBASE,B20021,HRA - Responsive Repairs,Materials,47.95,47.95,.00,.00,.00,.00
27/07/2020,NOTTS COUNTY COUNCIL,A11135,Env Health Proactive,Professional Services,11.00,11.00,.00,.00,.00,.00
27/08/2020,CO OP GROUP FOOD,A11810,Newark Business Innovation Cen,Office Equipment Purchase,1.50,1.50,.00,.00,.00,.00
27/08/2020,milk&more,B20021,HRA - Responsive Repairs,Office Equipment Purchase,24.75,24.75,.00,.00,.00,.00
27/08/2020,CO OP FOOD,N10101,Southwell Tr admin & ops,Vending Machine Provisions,2.20,2.20,.00,.00,.00,.00
27/08/2020,W BOYES & CO LTD NEWAR,A10109,Heritage Culture and Visitors,Repairs And Maintenance,3.00,3.00,.00,.00,.00,.00
27/08/2020,CIVIL WAR / PALACE,A10109,Heritage Culture and Visitors,Education & Outreach,11.00,11.00,.00,.00,.00,.00
28/06/2020,W BOYES & CO LTD NEWAR,A10109,Heritage Culture and Visitors,Repairs And Maintenance,4.97,5.96,.00,.99,.00,20.00
28/07/2020,COMPLETE CARE SHOP,B20021,HRA - Responsive Repairs,Materials,105.78,105.78,.00,.00,.00,.00
28/07/2020,WM MORRISONS STORE,A11851,Economic Development Unit,Employment & skills,40.00,40.00,.00,.00,.00,.00
28/08/2020,Amazon Prime 522X39WD5,C54015,Vulnerable People,Other Equipment And Tools,7.99,7.99,.00,.00,.00,.00
29/06/2020,W BOYES & CO LTD NEWAR,A10109,Heritage Culture and Visitors,Repairs And Maintenance,4.97,5.96,.00,.99,.00,20.00
29/06/2020,PAYPAL  BENEFITSTRA,A10841,Central Personnel Expenses,Internal Training,149.90,149.90,.00,.00,.00,.00
29/06/2020,Amazon.co.uk JP1S69NR5,A11583,Community Sports & Arts Dev,Materials,19.15,22.98,.00,3.83,.00,20.00
29/06/2020,Primeprint Newark Ltd,A10810,Communications & Cust Services,Printing,20.00,24.00,.00,4.00,.00,20.00
29/06/2020,AMZNMktplace,B20023,HRA - Gladstone House,Miscellaneous Expenses,191.66,229.99,.00,38.33,.00,20.00
29/06/2020,AMZNMktplace,B20023,HRA - Gladstone House,Miscellaneous Expenses,10.95,10.95,.00,.00,.00,.00
29/06/2020,AMZNMktplace,B20023,HRA - Gladstone House,Miscellaneous Expenses,7.49,8.99,.00,1.50,.00,20.00
29/06/2020,ASDA GROCERIES ONLINE,A11831,Castle House,Catering,31.02,31.02,.00,.00,.00,.00
29/07/2020,AMZNMKTPLACE AMAZON.CO,A11135,Env Health Proactive,Clothing And Uniforms,12.49,14.99,.00,2.50,.00,20.00
29/07/2020,capitalhairandbeauty.c,B20023,HRA - Gladstone House,Photographic Work,50.75,60.90,.00,10.15,.00,20.00
29/08/2020,UnitedArtsGmbH,A10109,Heritage Culture and Visitors,Items For Resale,20.00,24.00,.00,4.00,.00,20.00
30/06/2020,E.ON ENERGY SOLUTIONS,A10213,Housing Options,Hostel Management,19.99,19.99,.00,.00,.00,.00
30/06/2020,WWW.ALZPRODUCTS.CO.UK,B20021,HRA - Responsive Repairs,Materials,19.87,23.85,.00,3.98,.00,20.00
30/06/2020,WWW.FIREPROTECTIONSHOP,A11810,Newark Business Innovation Cen,Repairs And Maintenance,155.93,187.12,.00,31.19,.00,20.00
30/06/2020,WWW.BURGONANDBALL.COM,B20023,HRA - Gladstone House,Catering,19.98,19.98,.00,.00,.00,.00
30/06/2020,CAPITAL H&B LTD,B20023,HRA - Gladstone House,Photographic Work,223.41,268.09,.00,44.68,.00,20.00
30/06/2020,WWW.NISBETS.COM,B20015,HRA - Vale View,Cleaning Materials,13.42,13.42,.00,.00,.00,.00
30/06/2020,capitalhairandbeauty.c,B20023,HRA - Gladstone House,Photographic Work,50.88,61.06,.00,10.18,.00,20.00
30/06/2020,CARTRIDGESHOP.CO.UK,N10101,Southwell Tr admin & ops,Other Equipment And Tools,14.98,14.98,.00,.00,.00,.00
30/07/2020,AMZNMKTPLACE AMAZON.CO,B20021,HRA - Responsive Repairs,Materials,8.29,9.95,.00,1.66,20.00,20.00
30/07/2020,milk&more,B20021,HRA - Responsive Repairs,Office Equipment Purchase,24.75,24.75,.00,.00,.00,.00
30/07/2020,AMZNMKTPLACE AMAZON.CO,B20016,HRA - Street Wardens,Materials,9.98,11.98,.00,2.00,20.00,20.00
30/07/2020,CO OP GROUP FOOD,A11810,Newark Business Innovation Cen,Catering,1.50,1.50,.00,.00,.00,.00
30/07/2020,XLN TELECOM LTD,N10101,Southwell Tr admin & ops,Telephones,68.94,82.73,.00,13.79,.00,20.00
31/07/2020,WWW.EMAP.COM/EVENTS,A10864,Corporate Management Team,Course Fees,199.00,238.80,.00,39.80,.00,20.00
31/07/2020,AMZNMktplace,A10904,Council Tax,Office Equipment Purchase,59.98,59.98,.00,.00,.00,.00
